lending/lending_fUSD_20240130
["ID","MTS","AMOUNT","RATE_DAILY","PERIOD"]
[313003491,1706586637894,-741.68,0.00044383,120]
[313003492,1706586637903,-264.6,0.00044412,2]
[313003493,1706586637912,-532.31,0.00044501,2]
[313003494,1706586637921,-532.31,0.00044623,2]
[313003495,1706586637930,-164.94608673,0.00044687,2]
[313003496,1706586637939,-1000.0,0.000447,2]
[313003497,1706586637949,-532.31,0.00044744,2]
[313003498,1706586637958,-200.0,0.00044767,2]
[313003499,1706586637967,-532.31,0.00044866,2]
[313003500,1706586637976,-532.31,0.00044987,2]
[313003501,1706586637985,-253.11560498,0.00045,4]
[313003502,1706586637995,-500.0,0.00045,30]
[313003503,1706586638004,-165.0,0.00045,2]
[313003504,1706586638013,-933.0,0.00045,2]
[313003505,1706586638022,-532.31,0.00045108,2]
[313003506,1706586638032,-155.45,0.000452,5]
[313003507,1706586638041,-155.45,0.000452,5]
[313003508,1706586638051,-155.45,0.000452,5]
[313003509,1706586638060,-155.45,0.000452,5]
[313003510,1706586638070,-155.45,0.000452,5]
[313003511,1706586638079,-155.45,0.000452,5]
[313003512,1706586638089,-155.45,0.000452,5]
[313003513,1706586638098,-155.45,0.000452,5]
[313003514,1706586638107,-532.31,0.0004523,2]
[313003515,1706586638116,-532.31,0.00045351,2]
[313003516,1706586638125,-532.31,0.00045472,2]
[313003517,1706586638134,-150.0,0.00045507,2]
[313003518,1706586638144,-174.65,0.00045513,2]
[313003519,1706586638153,-181.12,0.00045522,120]
[313003520,1706586638162,-532.31,0.00045594,2]
[313003521,1706586638172,-532.31,0.00045715,2]
[313003522,1706586638180,-532.31,0.00045837,2]
[313003523,1706586638191,-532.31,0.00045958,2]
[313003524,1706586638201,-272.08477859,0.00045979,7]
[313003525,1706586638211,-169446.0,0.00046011,30]
[313003526,1706586638221,-193.76,0.00046038,2]
[313003527,1706586638230,-532.31,0.00046079,2]
[313003528,1706586638240,-532.31,0.00046201,2]
[313003529,1706586638249,-532.31,0.00046322,2]
[313003530,1706586638261,-206.4208,0.00046385,2]
[313003531,1706586638270,-197.2544,0.00046385,2]
[313003532,1706586638280,-176.73,0.0004643,2]
[313003533,1706586638290,-532.31,0.00046443,2]
[313003534,1706586638299,-514.9369035,0.000465,30]
[313003535,1706586638308,-210.0,0.00046544,10]
[313003538,1706586638502,-532.31,0.00046565,2]
[313003539,1706586638516,-200.97949855,0.00046575,30]
[313003540,1706586638526,-150.0,0.00046633,2]
[313003541,1706586638535,-264.6,0.00046676,2]
[313003542,1706586638546,-272.0847785,0.00046692,8]
[313003543,1706586638556,-180.0,0.00046833,2]
[313003544,1706586638564,-150.0,0.000469,45]
[313003545,1706586638573,-500.0,0.000469,2]
[313003546,1706586638583,-5044.61159359,0.000469,2]
[313003547,1706586638592,-486.8132,0.00046912,2]
[313003548,1706586638602,-151.0,0.00046936,2]
[313003549,1706586638612,-5044.61159342,0.00046947,2]
[313003550,1706586638622,-176.73,0.00046978,2]
[313003551,1706586638631,-5044.61159342,0.00046995,2]
[313003552,1706586638642,-50000.0,0.00047,27]
[313003553,1706586638651,-150.0,0.00047,2]
[313003554,1706586638661,-241.1657594,0.00047,2]
[313003555,1706586638670,-152.0,0.00047012,3]
[313003556,1706586638680,-5044.61159342,0.00047042,2]
[313003557,1706586638690,-5044.61159342,0.00047089,2]
[313003558,1706586638700,-350.7216,0.0004713,2]
[313003559,1706586638709,-5044.61159342,0.00047137,2]
[313003560,1706586638718,-5044.61159342,0.00047184,2]
[313003561,1706586638727,-215.28418954,0.00047229,13]
[313003562,1706586638737,-913.16450354,0.00047229,5]
[313003563,1706586638747,-5044.61159342,0.00047231,2]
[313003564,1706586638756,-5044.61159342,0.00047279,2]
[313003565,1706586638766,-7985.0,0.0004729,2]
[313003566,1706586638776,-295.04632697,0.00047319,2]
[313003567,1706586638785,-791.93586136,0.0004732,2]
[313003568,1706586638797,-178.22959207,0.0004732,25]
[313003569,1706586638806,-5044.61159342,0.00047326,2]
[313003570,1706586638815,-152.42869136,0.00047329,34]
[313003571,1706586638825,-164.21648366,0.00047329,23]
[313003572,1706586638835,-360.1584,0.00047329,2]
[313003573,1706586638845,-148891.44055301,0.00047329,2]
[313003574,1706586638860,-359.04640681,0.00047329,2]
[313003575,1706586638873,-95749.51304018,0.00047329,2]
[313003576,1706586638884,-210.0,0.00047329,2]
[313003577,1706586638893,-5044.61159342,0.00047373,2]
[313003578,1706586638903,-913.16450343,0.00047383,5]
[313003579,1706586638914,-16322.0,0.0004739,2]
[313003580,1706586638924,-770.0,0.0004739,2]
[313003581,1706586638934,-1000.0,0.000474,2]
[313003582,1706586638945,-272.0847785,0.00047406,9]
[313003583,1706586638955,-766.84215655,0.00047416,23]
[313003584,1706586638965,-199.44206789,0.00047416,2]
[313003585,1706586638975,-185849.554377,0.00047419,11]
[313003586,1706586638985,-1110.2699,0.0004742,37]
[313003587,1706586638994,-92924.7771886,0.0004742,11]
[313003588,1706586639004,-5044.61159342,0.0004742,2]
[313003589,1706586639015,-215.11315026,0.00047428,30]
[313003590,1706586639025,-1607.95245111,0.00047428,4]
[313003591,1706586639034,-1381.22348366,0.00047428,4]
[313003592,1706586639043,-999213.67641088,0.00047429,3]
[313003593,1706586639055,-951.35210103,0.00047429,3]
[313003594,1706586639071,-13451.84871869,0.00047429,3]
[313003595,1706586639082,-19817.88482359,0.00047429,3]
[313003596,1706586639107,-2258.89766556,0.00047429,3]
[313003597,1706586639131,-3627.95124371,0.00047429,3]
[313003598,1706586639300,-926.63689892,0.00047429,3]
[313003599,1706586639339,-635.96349285,0.00047429,3]
[313003602,1706586640367,-1488.09769789,0.00040373,19]
[313003603,1706586640378,-1649.38049931,0.00040373,19]
[313003604,1706586640388,-1070.276403,0.00047429,3]
[313003605,1706586641026,-528.78808296,0.00047429,3]
[313003606,1706586641037,-13633.01388397,0.00047429,3]
[313003607,1706586641048,-322.02712938,0.00047429,3]
[313003608,1706586641092,-9245.30500987,0.00047429,3]
[313003609,1706586641106,-507.76928861,0.00047429,3]
[313003610,1706586641117,-601.05792827,0.00047429,3]
[313003611,1706586641129,-21357.63,0.00047429,3]
[313003612,1706586641155,-22005.07708356,0.00047429,3]
[313003613,1706586641168,-312.14320097,0.00047429,3]
[313003614,1706586641179,-479.71249685,0.00047429,3]
[313003615,1706586641194,-870.63405804,0.00047429,3]
[313003616,1706586641220,-37519.2684082,0.00047429,3]
[313003617,1706586641231,-320.7376266,0.00047429,3]
[313003618,1706586641281,-541.05532265,0.00047429,3]
[313003619,1706586641293,-1612.60638186,0.00047429,3]
[313003620,1706586641340,-572.92593865,0.00047429,3]
[313003623,1706586642792,-164.94608673,0.00045307,2]
[313003624,1706586642802,-660.32619826,0.00047429,3]
[313003625,1706586642813,-1449.54671138,0.00047429,3]
[313003626,1706586642824,-21011.99395085,0.00047429,3]
[313003627,1706586642933,-262.84287416,0.00047429,3]
[313003628,1706586642945,-696.05985471,0.00047429,3]
[313003629,1706586642956,-1515.01903168,0.00047429,3]
[313003630,1706586642967,-293.33957425,0.00047429,3]
[313003631,1706586642994,-687.94683189,0.00047429,3]
[313003632,1706586643005,-3862.47146673,0.00047429,3]
[313003633,1706586643016,-6289.58896208,0.00047429,3]
[313003634,1706586643026,-155.71115562,0.00047429,4]
[313003635,1706586643035,-209.97037424,0.00047429,30]
[313003636,1706586643044,-70572.211777,0.00047429,2]
[313003637,1706586643063,-352.73851809,0.00047429,2]
[313003638,1706586643082,-524.28678313,0.00047429,2]
[313003639,1706586643094,-21440.71111637,0.00047429,2]
[313003640,1706586643105,-723.05702901,0.00047429,2]
[313003641,1706586643117,-1771.22584061,0.00047429,2]
[313003642,1706586643129,-1321.86465,0.00047429,2]
[313003672,1706586645942,-570.51160774,0.00047428,4]
[313003674,1706586645953,-4.34554406,0.00047428,4]
[313003679,1706586646077,-1339.74640661,0.00047428,4]
[313003680,1706586646089,-3350.55096394,0.00047428,30]
[313003681,1706586646103,-291.14053393,0.00047428,30]
[313003682,1706586646114,-3988.39521327,0.00047429,2]
[313003683,1706586669817,420075.48644278,0.00023,2]
[313003684,1706586716107,483.42245739,0.00021848,2]
[313003685,1706586758728,155.0,0.00021848,2]
[313003686,1706586760144,362.00852423,0.00021848,2]
[313003687,1706586766893,1100.4156812,0.00021848,2]
[313003688,1706586776691,155.33168313,0.00021848,2]
[313003689,1706586780889,306.47466526,0.00021848,2]
[313003690,1706586784149,362.00852423,0.00021848,2]
[313003691,1706586800159,362.00852423,0.00021848,2]
[313003692,1706586816158,362.00852423,0.00021848,2]
[313003693,1706586836157,346.81569854,0.00021848,2]
[313003694,1706586847285,189004.50571756,0.00022094,2]
[313003695,1706586847320,14148.49428244,0.00022094,2]
[313003696,1706586856361,200.97949855,0.00021918,2]
[313003697,1706586924462,200.0,0.000314,120]
[313003698,1706586944122,200.0,0.000225,2]
[313003699,1706586965368,500.0,0.000225,2]
[313003700,1706587012748,200.0,0.000314,120]
[313003704,1706587050583,150.0,0.000225,2]
[313003705,1706587055287,443.39607146,0.000259,11]
[313003706,1706587069678,150.0,0.00022,2]
[313003707,1706587078964,176.73,0.00022,2]
[313003708,1706587108246,500.0,0.00022,2]
[313003709,1706587115385,484.45,0.00020542,2]
[313003710,1706587130310,160.94,0.0002225,2]
[313003711,1706587200642,354.71685717,0.000259,11]
[313003712,1706587206121,2482.15,0.00022457,2]
[313003713,1706587208004,640.0,0.00022428,2]
[313003714,1706587254937,250.0,0.00022369,2]
[313003715,1706587285959,1199.04,0.00022307,2]
[313003716,1706587346122,283.77348573,0.00025369,10]
[313003717,1706587379114,181.12,0.00021926,2]
[313003718,1706587403882,2392.22,0.0002194,2]
[313003719,1706587452794,2000.0,0.0002195,2]
[313003720,1706587491338,227.01878859,0.00025369,10]
[313003721,1706587506917,250.0,0.00022,2]
[313003722,1706587508197,250.0,0.00022274,2]
[313003723,1706587516972,250.0,0.00021918,2]
[313003724,1706587522520,417.48,0.00021899,2]
[313003725,1706587548955,150.0,0.00021899,2]
[313003726,1706587569804,200.0,0.00021899,2]
[313003727,1706587573944,632.33,0.00021907,2]
[313003728,1706587593083,-223.58216126,0.00022536,4]
[313003729,1706587593105,-555.84,0.00022537,2]
[313003730,1706587593125,-30.30486552,0.00022548,2]
[313003731,1706587595687,882.94,0.00021924,2]
[313003732,1706587598906,499.58,0.00021924,2]
[313003733,1706587600431,174.69,0.00021924,2]
[313003734,1706587604686,5437.87,0.00021924,2]
[313003735,1706587622902,256.65,0.00021916,2]
[313003736,1706587624073,2842.17,0.00021916,2]
[313003737,1706587636696,181.61503087,0.00025369,10]
[313003738,1706587639396,2068.45,0.00021911,2]
[313003739,1706587643577,488.0,0.00021911,2]
[313003740,1706587653126,-146.42513448,0.00022548,2]
[313003741,1706587653148,-500.0,0.00022548,2]
[313003742,1706587653169,-250.0,0.00022548,2]
[313003743,1706587653190,-555.84,0.00022598,2]
[313003744,1706587653211,-555.84,0.0002266,2]
[313003745,1706587653231,-593.81711624,0.000227,2]
[313003746,1706587653253,-555.84,0.00022722,2]
[313003747,1706587653273,-227.61137441,0.00022767,4]
[313003748,1706587653299,-555.84,0.00022784,2]
[313003749,1706587653321,-162.44075746,0.000228,2]
[313003750,1706587653342,-484.45,0.00022806,2]
[313003751,1706587653364,-162.4407574,0.00022814,2]
[313003752,1706587653384,-306.92392942,0.00022822,2]
[313003753,1706587653404,-162.4407574,0.00022829,2]
[313003754,1706587653424,-162.4407574,0.00022843,2]
[313003755,1706587653446,-555.84,0.00022846,2]
[313003756,1706587653467,-162.4407574,0.00022857,2]
[313003757,1706587653488,-162.4407574,0.00022871,2]
[313003758,1706587653508,-499.99,0.00022871,2]
[313003759,1706587653527,-688.59,0.00022871,2]
[313003760,1706587653549,-162.4407574,0.00022886,2]
[313003761,1706587653568,-1176.2464,0.00022899,2]
[313003762,1706587653587,-1363.88121307,0.00022899,2]
[313003763,1706587653606,-444.44278389,0.00022899,2]
[313003764,1706587653625,-1363.88121305,0.00022899,2]
[313003765,1706587653645,-1363.88121305,0.000229,2]
[313003766,1706587653664,-1363.88121305,0.000229,2]
[313003767,1706587653683,-169.40558037,0.000229,2]
[313003768,1706587653704,-162.4407574,0.000229,2]
[313003769,1706587653726,-152.49060326,0.000229,2]
[313003770,1706587653749,-5785.02213016,0.000229,2]
[313003771,1706587682562,451.01,0.00020318,2]
[313003772,1706587713305,150.0,0.00022,2]
[313003773,1706587720923,150.0,0.00022,2]
[313003774,1706587722279,250.0,0.00022179,2]
[313003775,1706587725732,716.73,0.00022152,2]
[313003776,1706587726321,287.47792992,0.00022,2]
[313003777,1706587728886,150.0,0.00022,2]
[313003778,1706587742005,176.73,0.00022,2]
[313003779,1706587750105,-1374.81657454,0.00022547,2]
[313003780,1706587750125,-150.0,0.00022548,2]
[313003781,1706587750145,-150.0,0.00022548,2]
[313003782,1706587750165,-176.73,0.00022548,2]
[313003783,1706587750185,-451.01,0.00022582,2]
[313003784,1706587750208,-300.0,0.00022899,2]
[313003785,1706587750229,-1102.94432546,0.000229,2]
[313003786,1706587754083,-9349.79541788,0.000229,2]
[313003787,1706587754102,-272.55804949,0.000229,2]
[313003788,1706587754124,-1882.93498805,0.000229,2]
[313003789,1706587754143,-1363.88121305,0.000229,2]
[313003790,1706587754163,-182.91550859,0.000229,2]
[313003791,1706587754183,-706.06907974,0.000229,2]
[313003792,1706587754202,-259.10221796,0.000229,2]
[313003793,1706587754221,-178.22959207,0.000229,2]
[313003794,1706587754240,-706.06907973,0.00022906,2]
[313003795,1706587754260,-259.10221796,0.00022906,2]
[313003796,1706587754280,-555.84,0.00022907,2]
[313003797,1706587754303,-182.91550859,0.00022912,2]
[313003798,1706587754322,-706.06907973,0.00022912,2]
[313003799,1706587754342,-259.10221796,0.00022912,2]
[313003800,1706587754363,-555.84,0.00022969,2]
[313003801,1706587754384,-295.04632697,0.0002299,2]
[313003802,1706587754404,-295.04632697,0.0002299,2]
[313003803,1706587754423,-295.04632697,0.0002299,2]
[313003804,1706587754444,-248.1413861,0.00022997,2]
[313003805,1706587754465,-2791.07605815,0.00022997,2]
[313003806,1706587754484,-315.2075378,0.00022997,2]
[313003807,1706587754504,-155.59844655,0.00022997,2]
[313003808,1706587754525,-5000.33,0.00022997,2]
[313003809,1706587754544,-285.95951761,0.00022997,2]
[313003810,1706587754565,-48.52990208,0.00022997,2]
[313003811,1706587755207,-114.67643888,0.00022997,2]
[313003812,1706587755227,-3884.52726721,0.00022997,2]
[313003813,1706587755246,-2152.51624652,0.00022997,2]
[313003814,1706587755266,-679.06540673,0.00022998,2]
[313003815,1706587755285,-373.48786222,0.00022998,2]
[313003816,1706587755304,-631.72684832,0.00022998,2]
[313003817,1706587755325,-525.96292757,0.00022998,2]
[313003818,1706587755345,-25998.89800255,0.00022999,2]
[313003823,1706587767105,-1373.59413726,0.00022998,2]
[313003824,1706587767127,-136649.08586274,0.00022999,2]
[313003825,1706587769114,-109055.97093596,0.00022999,2]
[313003826,1706587769976,500.0,0.00022,2]
[313003827,1706587773118,-500.0,0.00022548,2]
[313003828,1706587773139,-97381.533,0.00022999,2]
[313003836,1706587831927,-322.76220486,0.000229,2]
[313003837,1706587831937,-24.03951349,0.000229,2]
[313003838,1706587831980,-204.03950949,0.000229,2]
[313003839,1706587831989,-817.01990609,0.000229,2]
[313003840,1706587832108,-6703.92805942,0.000229,2]
[313003841,1706587832117,-189.75822277,0.000229,2]
[313003842,1706587832127,-378.1284951,0.000229,2]
[313003843,1706587832137,-322.76220486,0.00022906,2]
[313003844,1706587832146,-228.07902297,0.00022906,2]
[313003845,1706587832156,-7520.94796551,0.00022906,2]
[313003846,1706587832165,-378.12849508,0.00022906,2]
[313003847,1706587832174,-322.76220486,0.00022912,2]
[313003848,1706587832184,-228.07902297,0.00022912,2]
[313003849,1706587832193,-7520.94796551,0.00022912,2]
[313003850,1706587832202,-378.12849508,0.00022912,2]
[313003851,1706587832211,-32087.38067299,0.00022999,2]
[313003852,1706587832223,-300.0,0.00022999,2]
[313003853,1706587832303,-45403.4542469,0.00022999,2]
[313003854,1706587832313,-156.14823303,0.00022999,2]
[313003855,1706587832323,-347.41795743,0.00022999,2]
[313003856,1706587832332,-500.0,0.00022999,2]
[313003857,1706587832342,-500.0,0.00022999,2]
[313003858,1706587832351,-344.64217976,0.00022999,2]
[313003859,1706587832360,-500.0,0.00022999,2]
[313003860,1706587832369,-414.66027559,0.00022999,2]
[313003861,1706587832379,-500.0,0.00022999,2]
[313003862,1706587832389,-205.49591578,0.00022999,2]
[313003863,1706587832398,-500.0,0.00022999,2]
[313003864,1706587832409,-500.0,0.00022999,2]
[313003865,1706587832418,-500.0,0.00022999,2]
[313003866,1706587832430,-500.0,0.00022999,2]
[313003867,1706587832439,-500.0,0.00022999,2]
[313003868,1706587832449,-500.0,0.00022999,2]
[313003869,1706587832458,-500.0,0.00022999,2]
[313003870,1706587832468,-499.99999999,0.00022999,2]
[313003871,1706587832477,-5687.85944607,0.00023,2]
[313003872,1706587832707,-5234.68465695,0.00023,2]
[313003873,1706587832719,-9836.68309227,0.00023,2]
[313003874,1706587832734,-631.92613547,0.00023,2]
[313003875,1706587832745,-564.28815814,0.00023,2]
[313003876,1706587832757,-20210.06102423,0.00023,2]
[313003879,1706587837920,-413.54990639,0.00023,2]
[313003886,1706587837977,-3721118.8847818,0.00023,2]
[313003888,1706587837987,-244.40073402,0.00023,2]
[313003890,1706587837998,-2600.61155671,0.00023,2]
[313003892,1706587838008,-14848.733072,0.00023,2]
[313003894,1706587838018,-4496016.24983688,0.00023,2]
[313003896,1706587838030,-355340.66470299,0.00023,2]
[313003898,1706587838040,-256.65,0.00023012,2]
[313003900,1706587838049,-555.84,0.00023031,2]
[313003902,1706587838058,-555.84,0.00023093,2]
[313003904,1706587838067,-290.71684368,0.00023096,2]
[313003906,1706587838077,-150.0,0.00023096,2]
[313003909,1706587838087,-176.73,0.00023096,2]
[313003910,1706587838096,-500.0,0.00023096,2]
[313003911,1706587838106,-662.35542123,0.0002313,2]
[313003912,1706587838115,-555.84,0.00023155,2]
[313003913,1706587838125,-555.84,0.00023216,2]
[313003914,1706587838135,-555.84,0.00023278,2]
[313003915,1706587838145,-555.84,0.0002334,2]
[313003916,1706587838154,-150.0,0.0002337,2]
[313003917,1706587838164,-555.84,0.00023402,2]
[313003918,1706587838175,-555.84,0.00023464,2]
[313003919,1706587838185,-555.84,0.00023525,2]
[313003920,1706587838194,-2068.45,0.00023555,2]
[313003921,1706587838212,-555.84,0.00023587,2]
[313003922,1706587838224,-150.0,0.00023644,2]
[313003923,1706587838233,-176.73,0.00023644,2]
[313003924,1706587838243,-578.74456931,0.00023644,2]
[313003925,1706587838253,-555.84,0.00023649,2]
[313003926,1706587838262,-555.84,0.00023711,2]
[313003927,1706587838272,-1882.93498797,0.00023798,2]
[313003928,1706587838282,-500.3911992,0.00023999,2]
[313003929,1706587838292,-155.34771185,0.000241,2]
[313003930,1706587838301,-256.65,0.00024108,2]
[313003931,1706587838310,-150.0,0.00024192,2]
[313003932,1706587838321,-176.73,0.00024192,2]
[313003933,1706587838330,-157.09803962,0.000243,2]
[313003934,1706587838341,-463.07,0.00024384,2]
[313003935,1706587838350,-150.0,0.00024425,2]
[313003936,1706587838360,-150.0,0.00024425,2]
[313003937,1706587838369,-150.0,0.00024425,2]
[313003938,1706587838379,-150.0,0.00024425,2]
[313003939,1706587838389,-150.0,0.00024425,2]
[313003940,1706587838398,-150.0,0.00024425,2]
[313003941,1706587838409,-150.0,0.00024425,2]
[313003942,1706587838419,-150.0,0.00024425,2]
[313003943,1706587838428,-150.0,0.00024425,2]
[313003944,1706587838439,-150.0,0.00024425,2]
[313003945,1706587838448,-150.0,0.00024425,2]
[313003946,1706587838458,-150.0,0.00024425,2]
[313003947,1706587838468,-488.0,0.0002465,2]
[313003948,1706587838478,-250.0,0.00024658,2]
[313003949,1706587838487,-150.0,0.00024658,2]
[313003950,1706587838497,-150.0,0.00024658,2]
[313003951,1706587838506,-150.0,0.00024658,2]
[313003952,1706587838516,-150.0,0.00024658,2]
[313003953,1706587838526,-150.0,0.00024658,2]
[313003954,1706587838536,-150.0,0.00024658,2]
[313003955,1706587838546,-150.0,0.00024658,2]
[313003956,1706587838555,-150.0,0.00024658,2]
[313003957,1706587838565,-150.0,0.00024658,2]
[313003958,1706587838575,-150.0,0.00024658,2]
[313003959,1706587838584,-150.0,0.00024658,2]
[313003960,1706587838593,-150.0,0.00024658,2]
[313003961,1706587838603,-150.0,0.00024658,2]
[313003962,1706587838613,-150.0,0.00024658,2]
[313003963,1706587838622,-150.0,0.00024658,2]
[313003964,1706587838632,-150.0,0.00024658,2]
[313003965,1706587838642,-150.0,0.00024658,2]
[313003966,1706587838651,-150.0,0.00024658,2]
[313003967,1706587838661,-150.0,0.00024658,2]
[313003968,1706587838671,-153.39062201,0.00024658,2]
[313003969,1706587838680,-1882.93498797,0.00024696,2]
[313003970,1706587838691,-286.74856268,0.0002474,2]
[313003971,1706587838701,-150.0,0.0002474,2]
[313003972,1706587838713,-176.73,0.0002474,2]
[313003973,1706587838723,-451.01,0.00024846,2]
[313003974,1706587838733,-1587.92031382,0.00025,2]
[313003975,1706587838742,-935.98268242,0.00025,2]
[313003976,1706587838752,-2068.45,0.00025199,2]
[313003977,1706587838762,-256.65,0.00025204,2]
[313003978,1706587838771,-640.0,0.00025232,2]
[313003979,1706587838781,-217.9,0.00025233,2]
[313003980,1706587838791,-150.0,0.00025288,2]
[313003981,1706587838803,-176.73,0.00025288,2]
[313003982,1706587838813,-172.75,0.00025301,2]
[313003983,1706587838823,-23900.0,0.00025422,2]
[313003984,1706587838832,-189.75822277,0.00025454,2]
[313003985,1706587838842,-378.97,0.00025554,2]
[313003986,1706587838852,-1882.93498797,0.00025593,2]
[313003987,1706587838862,-150.0,0.00025836,2]
[313003988,1706587838871,-176.73,0.00025836,2]
[313003989,1706587838882,-150.0,0.00026079,2]
[313003990,1706587838892,-1275.83,0.00026296,2]
[313003991,1706587838902,-256.65,0.00026299,2]
[313003992,1706587838912,-152.16986487,0.00026384,2]
[313003993,1706587838922,-176.73,0.00026384,2]
[313003994,1706587838934,-15547.74642598,0.000264,2]
[313003995,1706587838944,-1882.93498797,0.00026491,2]
[313003996,1706587838954,-217.9,0.00026494,2]
[313003997,1706587838963,-281.85,0.00026639,2]
[313003998,1706587838972,-172.75,0.00026693,2]
[313004010,1706587839264,-2068.45,0.00026843,2]
[313004012,1706587839274,-176.73,0.00026932,2]
[313004014,1706587839283,-451.01,0.0002711,2]
[313004016,1706587839292,-488.0,0.00027389,2]
[313004018,1706587839305,-1882.93498797,0.00027389,2]
[313004020,1706587839314,-157.63239342,0.00027397,2]
[313004022,1706587839323,-265.59,0.00027397,2]
[313004024,1706587839332,-155.45,0.00027397,2]
[313004026,1706587839341,-22590.19712161,0.00027397,2]
[313004048,1706587839536,-388.88743593,0.000229,2]
[313004050,1706587839546,-419.86287184,0.00027397,2]
[313004052,1706587839558,-741.27723955,0.00027397,2]
[313004055,1706587839571,-420.8888349,0.00027397,2]
[313004057,1706587839587,-8060.7139321,0.00027397,2]
[313004059,1706587839597,-176.73,0.0002748,2]
[313004062,1706587839607,-176.4503854,0.000275,2]
[313004064,1706587839617,-2075.41,0.00027671,2]
[313004065,1706587839627,-265.59,0.00027686,2]
[313004067,1706587839636,-217.9,0.00027756,2]
[313004070,1706587839646,-155.45,0.00027819,2]
[313004071,1706587839655,-155.78,0.0002784,2]
[313004074,1706587839665,-265.59,0.00027974,2]
[313004075,1706587839675,-281.85,0.00028009,2]
[313004078,1706587839685,-176.73,0.00028028,2]
[313004080,1706587839694,-640.0,0.00028035,2]
[313004081,1706587839703,-172.75,0.00028085,2]
[313004084,1706587839713,-155.45,0.0002824,2]
[313004086,1706587839722,-265.59,0.00028262,2]
[313004087,1706587839732,-1882.93498797,0.00028287,2]
[313004089,1706587839741,-2068.45,0.00028486,2]
[313004091,1706587839750,-265.59,0.00028551,2]
[313004093,1706587839760,-176.73,0.00028576,2]
[313004096,1706587839769,-155.45,0.00028662,2]
[313004098,1706587839780,-2075.41,0.00028695,2]
[313004099,1706587839789,-265.59,0.00028839,2]
[313004102,1706587839799,-12507.51170923,0.00029,15]
[313004104,1706587839811,-217.9,0.00029018,2]
[313004106,1706587839821,-155.78,0.00029022,2]
[313004108,1706587839830,-155.45,0.00029083,2]
[313004109,1706587839839,-176.73,0.00029124,2]
[313004111,1706587839848,-265.59,0.00029128,2]
[313004113,1706587839857,-1882.93498797,0.00029185,2]
[313004116,1706587839867,-451.01,0.00029373,2]
[313004118,1706587839877,-265.59,0.00029416,2]
[313004119,1706587839886,-172.75,0.00029477,2]
[313004120,1706587839896,-155.45,0.00029505,2]
[313004121,1706587839905,-176.73,0.00029672,2]
[313004122,1706587839914,-265.59,0.00029704,2]
[313004123,1706587839923,-2075.41,0.00029719,2]
[313004124,1706587839933,-197.88245503,0.000299,2]
[313004125,1706587839942,-155.45,0.00029926,2]
[313004126,1706587839951,-265.59,0.00029993,2]
[313004127,1706587839960,-16184.70585858,0.0003,2]
[313004143,1706587840520,-8297.88062454,0.0003,2]
[313004167,1706587841313,-2042.80088286,0.0003,2]
[313004172,1706587843033,-2457.87975382,0.0003,2]
[313004173,1706587843046,-886.32444843,0.0003,2]
[313004174,1706587843057,-271.83505795,0.0003,2]
[313004175,1706587843071,-1707.12749173,0.0003,2]
[313004176,1706587843082,-1371.19618759,0.0003,2]
[313004177,1706587843094,-562.92771398,0.0003,2]
[313004178,1706587843106,-349.80780811,0.0003,2]
[313004179,1706587843254,-300.75597319,0.0003,2]
[313004180,1706587843266,-3695.01467041,0.0003,2]
[313004181,1706587843277,-1022.65060933,0.0003,2]
[313004182,1706587843289,-3800.38066603,0.0003,2]